bitfinex/quotes_BTCUSD_20250224
["timestamp","ask_amount","ask_price","bid_price","bid_amount"]
[1740415539653,0.0817,95020.0,95011.0,0.10264569]
[1740415540511,0.0817,95020.0,95011.0,0.10864569]
[1740415540911,0.09387956,95020.0,95011.0,0.10864569]
[1740415541733,0.09387956,95020.0,95011.0,0.10964569]
[1740415541940,0.09387956,95020.0,95011.0,0.11664569]
[1740415542139,0.210443,95038.0,95011.0,0.10964569]
[1740415542340,0.210443,95038.0,95012.0,0.31939851]
[1740415542544,0.21045,95034.0,95013.0,0.10264569]
[1740415542948,0.15,95038.0,95013.0,0.10264569]
[1740415543292,0.157851,95026.0,95013.0,0.10264569]
[1740415543461,0.15,95038.0,95013.0,0.10264569]
[1740415544952,0.157849,95027.0,95013.0,0.10264569]
[1740415545154,0.06131565,95035.0,95013.0,0.10564569]
[1740415545567,0.06091565,95035.0,95018.0,0.157863]
[1740415545767,0.06091565,95035.0,95014.0,0.31939851]
[1740415545768,0.15784,95033.0,95019.0,0.10264569]
[1740415546166,0.157842,95032.0,95019.0,0.10264569]
[1740415546368,0.157841,95032.0,95019.0,0.10264569]
[1740415546575,0.06091565,95035.0,95019.0,0.10264569]
[1740415546975,0.15784,95033.0,95019.0,0.10264569]
[1740415548027,0.210451,95034.0,95019.0,0.10264569]
[1740415548233,0.157838,95034.0,95019.0,0.10264569]
[1740415548432,0.15784,95033.0,95019.0,0.10464569]
[1740415548593,0.15784,95033.0,95019.0,0.10264569]
[1740415548934,0.27221405,95035.0,95019.0,0.10264569]
[1740415548935,0.27221405,95035.0,95019.0,0.10364569]
[1740415549162,0.157842,95032.0,95019.0,0.10664569]
[1740415549385,0.157838,95034.0,95019.0,0.10664569]
[1740415549571,0.06176505,95035.0,95023.0,0.157855]
[1740415549746,0.01296505,95035.0,95024.0,0.10264569]
[1740415549956,0.01296505,95035.0,95025.0,0.00147318]
[1740415550277,0.01296505,95035.0,95034.0,0.157838]
[1740415550278,0.0008494,95035.0,95034.0,0.157838]
[1740415550500,0.0008494,95035.0,95034.0,0.4220442]
[1740415550668,0.0008494,95035.0,95034.0,0.5798822]
[1740415552868,0.0008494,95035.0,95034.0,0.5858822]
[1740415553077,0.0008494,95035.0,95034.0,0.5928822]
[1740415557425,0.0008494,95035.0,95034.0,1.1303822]
[1740415561467,0.0008494,95035.0,95034.0,1.1773822]
[1740415561858,0.0008494,95035.0,95034.0,1.4067822]
[1740415562360,0.0008494,95035.0,95034.0,1.3997822]
[1740415562735,0.0008494,95035.0,95034.0,1.4007822]
[1740415562941,0.0008494,95035.0,95034.0,1.4077822]
[1740415563166,0.0008494,95035.0,95034.0,1.4007822]
[1740415563374,0.0008494,95035.0,95034.0,1.2507822]
[1740415563583,0.0008494,95035.0,95034.0,1.2037822]
[1740415564258,0.0008494,95035.0,95034.0,1.19551738]
[1740415564482,0.0008494,95035.0,95034.0,1.20951738]
[1740415564691,0.0008494,95035.0,95034.0,1.20251738]
[1740415565198,0.0008494,95035.0,95034.0,1.20951738]
[1740415565401,0.0008494,95035.0,95034.0,1.20251738]
[1740415565964,0.0008494,95035.0,95034.0,1.20951738]
[1740415566341,0.0008494,95035.0,95034.0,0.67201738]
[1740415568315,0.0008494,95035.0,95034.0,0.43477938]
[1740415569061,0.0008494,95035.0,95034.0,0.43351553]
[1740415569271,0.0008494,95035.0,95034.0,0.42651553]
[1740415569486,0.1586854,95035.0,95034.0,0.32386984]
[1740415569786,0.0008494,95035.0,95034.0,0.32386984]
[1740415569993,0.0008494,95035.0,95034.0,0.58435353]
[1740415570467,0.0008494,95035.0,95034.0,0.57735353]
[1740415571155,0.0008494,95035.0,95034.0,0.58435353]
[1740415571355,0.0008494,95035.0,95034.0,0.59135353]
[1740415571638,0.0008494,95035.0,95034.0,0.58435353]
[1740415572398,0.0008494,95035.0,95034.0,0.66995353]
[1740415575119,0.0008494,95035.0,95034.0,0.6855652]
[1740415575732,0.0008494,95035.0,95034.0,0.66995353]
[1740415577805,0.0008494,95035.0,95034.0,0.69089952]
[1740415578106,0.0008494,95035.0,95034.0,1.22839952]
[1740415580601,0.0008494,95035.0,95034.0,1.12885353]
[1740415580783,0.01649711,95035.0,95034.0,0.97101553]
[1740415581387,0.17433311,95035.0,95034.0,0.86836984]
[1740415581648,0.17433311,95035.0,95034.0,0.014]
[1740415582298,0.17433311,95035.0,95034.0,0.007]
[1740415583667,0.17433311,95035.0,95034.0,0.014]
[1740415583948,0.01649711,95035.0,95033.0,0.001698]
[1740415584145,0.17433311,95035.0,95034.0,0.005]
[1740415584348,0.17433311,95035.0,95034.0,0.011]
[1740415584884,0.17433311,95035.0,95034.0,0.0126978]
[1740415585299,0.32433311,95035.0,95034.0,0.0016978]
[1740415585704,0.32433311,95035.0,95034.0,0.0056978]
[1740415585705,0.42169134,95035.0,95034.0,0.0056978]
[1740415585915,0.32433311,95035.0,95034.0,0.0056978]
[1740415586879,0.48691965,95035.0,95034.0,0.0106978]
[1740415587090,0.50691965,95035.0,95034.0,0.0066978]
[1740415587294,0.50691965,95035.0,95034.0,0.0036978]
[1740415587442,0.2738898,95035.0,95034.0,0.0016978]
[1740415587643,0.157871,95014.0,95013.0,0.001698]
[1740415588487,0.06262775,95035.0,95013.0,0.001698]
[1740415588687,0.157871,95014.0,95013.0,0.001698]
[1740415589368,0.00791465,95028.0,95013.0,0.001698]
[1740415589637,0.15787,95015.0,95013.0,0.001698]
[1740415589827,0.157871,95014.0,95013.0,0.001698]
[1740415590044,0.210492,95016.0,95013.0,0.001698]
[1740415590183,0.157871,95014.0,95013.0,0.005698]
[1740415590759,0.157871,95014.0,95013.0,0.004698]
[1740415590968,0.157871,95014.0,95013.0,0.008698]
[1740415591249,0.157871,95014.0,95013.0,0.005698]
[1740415591608,0.157871,95014.0,95013.0,0.010698]
[1740415593049,0.157871,95014.0,95013.0,0.005698]
[1740415593245,0.157871,95014.0,95013.0,0.009698]
[1740415593246,0.204771,95014.0,95013.0,0.009698]
[1740415594264,0.21931185,95014.0,95013.0,0.005698]
[1740415594738,0.21931185,95014.0,95013.0,0.009698]
[1740415594866,0.204771,95014.0,95013.0,0.005698]
[1740415595072,0.204771,95014.0,95013.0,0.008698]
[1740415596049,0.204771,95014.0,95013.0,0.004698]
[1740415596574,0.206771,95014.0,95013.0,0.001698]
[1740415596707,0.157871,95014.0,95013.0,0.001698]
[1740415600358,0.159871,95014.0,95013.0,0.001698]
[1740415600557,0.159871,95014.0,95013.0,0.002698]
[1740415601043,0.159871,95014.0,95013.0,0.001698]
[1740415601245,0.157871,95014.0,95013.0,0.001698]
[1740415601453,0.3677559,95014.0,95013.0,0.001698]
[1740415601661,0.356571,95014.0,95013.0,0.001698]
[1740415602871,0.354571,95014.0,95013.0,0.001698]
[1740415603074,0.354571,95014.0,95013.0,0.002698]
[1740415603277,0.36871185,95014.0,95013.0,0.002698]
[1740415603476,0.36871185,95014.0,95013.0,0.001698]
[1740415603892,0.37071185,95014.0,95013.0,0.001698]
[1740415605846,0.157904,94994.0,94993.0,0.31686984]
[1740415606050,0.15,95013.0,94976.0,0.0821]
[1740415606309,0.157915,94988.0,94977.0,0.41951553]
[1740415606518,0.10264569,95013.0,94977.0,0.41951553]
[1740415606639,0.157919,94985.0,94977.0,0.41951553]
[1740415606839,0.157922,94984.0,94977.0,0.41951553]
[1740415607095,0.157919,94986.0,94977.0,0.41951553]
[1740415607444,0.210533,94997.0,94977.0,0.41951553]
[1740415607644,0.157918,94986.0,94977.0,0.41951553]
[1740415607891,0.00785038,95001.0,94977.0,0.31686984]
[1740415608092,0.157936,94975.0,94974.0,0.00012956]
[1740415608298,0.157934,94976.0,94974.0,0.00012956]
[1740415609112,0.01454085,94998.0,94974.0,0.00012956]
[1740415609318,0.157923,94983.0,94974.0,0.00012956]
[1740415609561,0.01525346,94983.0,94975.0,0.10264569]
[1740415609696,0.01525346,94983.0,94976.0,0.0784]
[1740415610067,0.15,94994.0,94977.0,0.10264569]
[1740415610370,0.15,94994.0,94977.0,0.26057769]
[1740415610582,0.157907,94993.0,94977.0,0.31322169]
[1740415610781,0.00992,95012.0,94977.0,0.10264569]
[1740415610782,0.15992,95012.0,94977.0,0.10264569]
[1740415610982,0.15,94996.0,94977.0,0.10264569]
[1740415611187,0.15,95002.0,94977.0,0.10264569]
[1740415611490,0.157906,94993.0,94980.0,0.157927]
[1740415611993,0.157915,94988.0,94977.0,0.10264569]
[1740415612208,0.210528,94999.0,94977.0,0.10264569]
[1740415612409,0.157911,94990.0,94977.0,0.26057769]
[1740415612624,0.157915,94988.0,94977.0,0.10264569]
[1740415613171,0.01572105,95002.0,94977.0,0.10264569]
[1740415613381,0.157917,94987.0,94977.0,0.10464569]
[1740415613799,0.157917,94987.0,94977.0,0.42151553]
[1740415614620,0.210544,94992.0,94977.0,0.42151553]
[1740415614878,0.157914,94989.0,94977.0,0.42151553]
[1740415615104,0.15,94997.0,94977.0,0.42151553]
[1740415615330,0.15,94995.0,94977.0,0.42151553]
[1740415615541,0.157919,94986.0,94977.0,0.42151553]
[1740415615718,0.15,94997.0,94977.0,0.31986984]
[1740415615926,0.15792,94985.0,94977.0,0.32186984]
[1740415616109,0.15792,94985.0,94977.0,0.31886984]
[1740415616304,0.157918,94986.0,94977.0,0.31686984]
[1740415616504,0.157919,94985.0,94977.0,0.31686984]
[1740415616711,0.15,94995.0,94977.0,0.31686984]
[1740415617326,0.15,94995.0,94978.0,0.10264569]
[1740415617532,0.15,95000.0,94978.0,0.10264569]
[1740415617726,0.157908,94992.0,94979.0,0.157929]
[1740415617906,0.157908,94992.0,94980.0,0.157927]
[1740415618129,0.15,94994.0,94981.0,0.157924]
[1740415618337,0.157908,94992.0,94980.0,0.157926]
[1740415618676,0.157912,94990.0,94978.0,0.26057569]
[1740415618893,0.15,94994.0,94978.0,0.10264569]
[1740415619120,0.157914,94989.0,94978.0,0.10264569]
[1740415619323,0.157912,94990.0,94978.0,0.26057569]
[1740415619528,0.210547,94991.0,94980.0,0.001]
[1740415619845,0.157916,94987.0,94978.0,0.10264569]
[1740415620049,0.21055,94989.0,94978.0,0.10264569]
[1740415620249,0.00785038,95001.0,94978.0,0.10264569]
[1740415620450,0.157916,94988.0,94978.0,0.10264569]
[1740415620687,0.210543,94993.0,94978.0,0.10464569]
[1740415620863,0.157911,94990.0,94978.0,0.26057469]
[1740415621116,0.157918,94986.0,94978.0,0.10264569]
[1740415621336,0.210532,94997.0,94977.0,0.31856804]
[1740415621549,0.15,94994.0,94977.0,0.31856804]
[1740415621753,0.210541,94993.0,94977.0,0.31856804]
[1740415622186,0.15,94994.0,94977.0,0.31856804]
[1740415622385,0.15,94994.0,94978.0,0.002]
[1740415622521,0.00785038,95001.0,94979.0,0.002]
[1740415622719,0.00785038,95001.0,94979.0,0.212571]
[1740415622924,0.157906,94993.0,94980.0,0.157926]
[1740415623120,0.151847,94990.0,94979.0,0.002]
[1740415623368,0.157917,94987.0,94978.0,0.10264569]
[1740415623565,0.157917,94987.0,94977.0,0.31856804]
[1740415623566,0.00785038,95001.0,94977.0,0.31856804]
[1740415623767,0.210572,94980.0,94977.0,0.31856804]
[1740415624198,0.157931,94978.0,94977.0,0.0016982]
[1740415625956,0.157931,94978.0,94977.0,0.0076982]
[1740415626575,0.157931,94978.0,94977.0,0.0016982]
[1740415626739,0.2368943,94978.0,94977.0,0.0056982]
[1740415627585,0.2368943,94978.0,94977.0,0.0016982]
[1740415627789,0.2368943,94978.0,94977.0,0.0026982]
[1740415627947,0.3868943,94978.0,94977.0,0.0076982]
[1740415628351,0.307931,94978.0,94977.0,0.0026982]
[1740415629201,0.307931,94978.0,94977.0,0.0016982]
[1740415629376,0.307931,94978.0,94977.0,0.0026982]
[1740415629556,0.157953,94965.0,94958.0,0.07572926]
[1740415629751,0.157951,94966.0,94958.0,0.07585884]
[1740415629957,0.15,94975.0,94958.0,0.07585884]
[1740415630162,0.157953,94965.0,94958.0,0.07585884]
[1740415630497,0.210579,94976.0,94958.0,0.07585884]
[1740415630749,0.210606,94964.0,94958.0,0.07585884]
[1740415630947,0.157962,94959.0,94958.0,0.07585884]
[1740415631150,0.157962,94959.0,94958.0,0.07985884]
[1740415631354,0.157962,94959.0,94958.0,0.00912958]
[1740415631924,0.157962,94959.0,94958.0,0.00412958]
[1740415632068,0.210611,94962.0,94958.0,0.01112958]
[1740415632286,0.01931594,94965.0,94958.0,0.01112958]
[1740415632483,0.15,94970.0,94958.0,0.01112958]
[1740415632484,0.10264569,94983.0,94958.0,0.01112958]
[1740415632683,0.01880453,94983.0,94959.0,0.17914569]
[1740415632891,0.00785457,94980.0,94960.0,0.0492]
[1740415633087,0.15795,94967.0,94960.0,0.0492]
[1740415633294,0.15,94978.0,94960.0,0.0492]
[1740415633295,0.15,94976.0,94960.0,0.0492]
[1740415633534,0.157951,94966.0,94960.0,0.0492]
[1740415633990,0.157954,94964.0,94959.0,0.0765]
[1740415634245,0.157961,94960.0,94959.0,0.0765]
[1740415634616,0.157962,94959.0,94958.0,0.00412958]
[1740415634846,0.157962,94959.0,94958.0,0.00012958]
[1740415635019,0.307962,94959.0,94958.0,0.00012958]
[1740415635818,0.307962,94959.0,94958.0,0.00412958]
[1740415636016,0.210602,94966.0,94958.0,0.00412958]
[1740415636017,0.157952,94966.0,94958.0,0.00412958]
[1740415636217,0.210572,94979.0,94959.0,0.0762]
[1740415636400,0.00785457,94980.0,94959.0,0.0792]
[1740415636594,0.360575,94978.0,94959.0,0.0762]
[1740415636819,0.157951,94967.0,94959.0,0.0762]
[1740415637034,0.15,94978.0,94959.0,0.0762]
[1740415637272,0.157952,94966.0,94959.0,0.0762]
[1740415637458,0.00785457,94980.0,94959.0,0.0762]
[1740415637760,0.157961,94960.0,94959.0,0.0762]
[1740415638655,0.210593,94970.0,94959.0,0.0762]
[1740415639081,0.157961,94960.0,94959.0,0.0762]
[1740415639437,0.157961,94960.0,94959.0,0.0812]
[1740415640881,0.157961,94960.0,94959.0,0.008]
[1740415641431,0.148041,94960.0,94959.0,0.008]
[1740415642415,0.354967,94960.0,94959.0,0.003]
[1740415642614,0.307962,94959.0,94958.0,0.00012958]
[1740415642825,0.32250285,94959.0,94958.0,0.00012958]
[1740415643049,0.17250285,94959.0,94958.0,0.00012958]
[1740415643866,0.27514854,94959.0,94958.0,0.00012958]
[1740415644066,0.27514854,94959.0,94958.0,0.00112958]
[1740415645067,0.42714854,94959.0,94958.0,0.00282858]
[1740415645398,0.42714854,94959.0,94953.0,0.0016994]
[1740415645399,0.157971,94954.0,94953.0,0.0016994]
[1740415645606,0.37656274,94954.0,94953.0,0.0016994]
[1740415646593,0.49374928,94954.0,94953.0,0.0016994]
[1740415647215,0.49474928,94954.0,94953.0,0.0016994]
[1740415647593,0.157984,94946.0,94945.0,0.0016994]
[1740415648002,0.42517054,94946.0,94945.0,0.0016994]
[1740415648514,0.43296775,94946.0,94945.0,0.0016994]
[1740415648889,0.43296775,94946.0,94945.0,0.0036994]
[1740415649186,0.43296775,94946.0,94945.0,0.0056994]
[1740415649394,0.33032206,94946.0,94945.0,0.0036994]
[1740415649648,0.33332206,94946.0,94945.0,0.0036994]
[1740415650285,0.33532206,94946.0,94945.0,0.0016994]
[1740415650705,0.33832206,94946.0,94945.0,0.0016994]
[1740415651100,0.33532206,94946.0,94945.0,0.0795994]
[1740415651308,0.33732206,94946.0,94945.0,0.0016994]
[1740415657752,0.32278121,94946.0,94945.0,0.0016994]
[1740415657960,0.164984,94946.0,94945.0,0.0016994]
[1740415658820,0.15,94939.0,94927.0,0.0778]
[1740415659020,0.158014,94928.0,94927.0,0.0778]
[1740415659961,0.32256285,94923.0,94922.0,0.27004012]
[1740415660172,0.15,94921.0,94898.0,0.0799]
[1740415660375,0.01454085,94923.0,94898.0,0.0799]
[1740415660376,0.158062,94899.0,94898.0,0.0799]
[1740415661615,0.158062,94899.0,94898.0,0.0849]
[1740415661976,0.158062,94899.0,94898.0,0.0799]
[1740415662366,0.159062,94899.0,94898.0,0.0859]
[1740415662572,0.159062,94899.0,94898.0,0.0899]
[1740415662949,0.159062,94899.0,94898.0,0.0859]
[1740415663222,0.159062,94899.0,94898.0,0.0899]
[1740415663827,0.158062,94899.0,94898.0,0.0839]
[1740415664206,0.159062,94899.0,94898.0,0.0889]
[1740415665063,0.001,94899.0,94898.0,0.0889]
[1740415665187,0.159062,94899.0,94898.0,0.0889]
[1740415665587,0.001,94899.0,94898.0,0.0889]
[1740415665794,0.159062,94899.0,94898.0,0.0889]
[1740415666004,0.159062,94899.0,94898.0,0.0849]
[1740415666581,0.158062,94899.0,94898.0,0.0829]
[1740415666989,0.158062,94899.0,94898.0,0.0869]
[1740415667200,0.158062,94899.0,94898.0,0.0839]
[1740415667402,0.3660171,94899.0,94898.0,0.0799]
[1740415667957,0.308062,94899.0,94898.0,0.0839]
[1740415668598,0.308062,94899.0,94898.0,0.007]
[1740415670009,0.32260285,94899.0,94898.0,0.0086994]
[1740415671806,0.308062,94899.0,94898.0,0.0086994]
[1740415684391,0.308062,94899.0,94898.0,0.0046994]
[1740415684805,0.308062,94899.0,94898.0,0.0016994]
[1740415685240,0.308062,94899.0,94898.0,0.0036994]
[1740415685441,0.39555795,94899.0,94898.0,0.0036994]
[1740415687305,0.39555795,94899.0,94898.0,0.0066994]
[1740415687525,0.39555795,94899.0,94898.0,0.00645939]
[1740415687711,0.39555795,94899.0,94898.0,0.00345939]
[1740415687887,0.32260285,94899.0,94898.0,0.00145939]
[1740415688093,0.16454085,94898.0,94892.0,0.00182663]
[1740415688294,0.308072,94893.0,94892.0,0.00182663]
[1740415688517,0.32261285,94893.0,94892.0,0.00182663]
[1740415689340,0.32261285,94893.0,94892.0,0.00282663]
[1740415689691,0.32261285,94893.0,94892.0,0.00182663]
[1740415689891,0.32261285,94893.0,94892.0,0.00282663]
[1740415690390,0.32261285,94893.0,94892.0,0.00482663]
[1740415690956,0.32261285,94893.0,94892.0,0.00282663]
[1740415691160,0.32261285,94893.0,94892.0,0.00482663]
[1740415694255,0.44455171,94893.0,94892.0,0.00482663]
[1740415694418,0.158087,94884.0,94882.0,0.0016964]
[1740415694622,0.158087,94884.0,94883.0,0.00182898]
[1740415699858,0.158087,94884.0,94883.0,0.00382898]
[1740415700333,0.158087,94884.0,94883.0,0.00182898]
[1740415700486,0.158087,94884.0,94883.0,0.00482898]
[1740415701812,0.16617592,94884.0,94883.0,0.00482898]
[1740415702215,0.158087,94884.0,94883.0,0.00482898]
[1740415703890,0.158087,94884.0,94883.0,0.00582898]
[1740415704225,0.158087,94884.0,94883.0,0.00482898]
[1740415704427,0.158087,94884.0,94883.0,0.00682898]
[1740415705821,0.23790287,94884.0,94883.0,0.00682898]
[1740415707166,0.40244372,94884.0,94883.0,0.00682898]
[1740415708398,0.40244372,94884.0,94883.0,0.00482898]
[1740415708649,0.40444372,94884.0,94883.0,0.00482898]
[1740415708971,0.40444372,94884.0,94883.0,0.00182898]
[1740415709227,0.40544372,94884.0,94883.0,0.00182898]
[1740415709731,0.41044372,94884.0,94883.0,0.00182898]
[1740415710289,0.40544372,94884.0,94883.0,0.00182898]
[1740415710494,0.40444372,94884.0,94883.0,0.00182898]
[1740415711311,0.40644372,94884.0,94883.0,0.00182898]
[1740415711515,0.40444372,94884.0,94883.0,0.00182898]
[1740415711923,0.40544372,94884.0,94883.0,0.00182898]
[1740415712127,0.40344372,94884.0,94883.0,0.00182898]
[1740415712961,0.309087,94884.0,94883.0,0.00182898]
[1740415713334,0.151,94884.0,94883.0,0.00182898]
[1740415713536,0.309087,94884.0,94883.0,0.00182898]
[1740415714581,0.308087,94884.0,94883.0,0.00182898]
[1740415715581,0.308087,94884.0,94883.0,0.00582898]
[1740415717655,0.15,94884.0,94883.0,0.08182898]
[1740415717979,0.308087,94884.0,94883.0,0.08182898]
[1740415719071,0.15,94884.0,94883.0,0.08182898]
[1740415719270,0.308087,94884.0,94883.0,0.08182898]
[1740415721245,0.21078,94886.0,94883.0,0.08182898]
[1740415721678,0.158087,94884.0,94883.0,0.08182898]
[1740415722273,0.158087,94884.0,94883.0,0.07982898]
[1740415722479,0.158087,94884.0,94883.0,0.08082898]
[1740415722888,0.158087,94884.0,94883.0,0.07782898]
[1740415723129,0.158087,94884.0,94883.0,0.07882898]
[1740415723466,0.158087,94884.0,94883.0,0.07982898]
[1740415723967,0.158087,94884.0,94883.0,0.08182898]
[1740415724779,0.158087,94884.0,94883.0,0.00582898]
[1740415726339,0.25166995,94884.0,94883.0,0.00582898]
[1740415726570,0.40166995,94884.0,94883.0,0.00582898]
[1740415726917,0.32262785,94884.0,94883.0,0.00582898]
[1740415727614,0.32262785,94884.0,94879.0,0.0013928]
[1740415727615,0.158094,94880.0,94879.0,0.0013928]
[1740415727953,0.27528054,94880.0,94879.0,0.0013928]
[1740415728984,0.158107,94872.0,94871.0,0.0004]
[1740415729389,0.17264785,94872.0,94871.0,0.0004]
[1740415729791,0.42529354,94872.0,94871.0,0.0004]
[1740415731688,0.16454085,94871.0,94855.0,0.0769]
[1740415731893,0.32265985,94865.0,94855.0,0.0769]
[1740415732110,0.42530554,94865.0,94855.0,0.0769]
[1740415732653,0.44243597,94865.0,94855.0,0.0769]
[1740415733272,0.32524943,94865.0,94855.0,0.0769]
[1740415733768,0.18325515,94865.0,94855.0,0.0769]
[1740415734181,0.18425515,94865.0,94855.0,0.0769]
[1740415734382,0.29546702,94865.0,94855.0,0.0769]
[1740415734607,0.44646702,94865.0,94855.0,0.0769]
[1740415734814,0.45244169,94865.0,94855.0,0.0769]
[1740415736118,0.45244169,94865.0,94849.0,0.0799]
[1740415738877,0.33525515,94865.0,94849.0,0.0799]
[1740415739663,0.349796,94865.0,94842.0,0.24253662]
[1740415739883,0.349796,94865.0,94864.0,0.0825974]
[1740415740058,0.4480211,94865.0,94864.0,0.0825974]
[1740415740843,0.4480211,94865.0,94864.0,0.0016974]
[1740415741778,0.55066679,94865.0,94864.0,0.0016974]
[1740415741989,0.32266185,94864.0,94863.0,0.0016596]
[1740415742157,0.42530754,94864.0,94863.0,0.0016596]
[1740415742566,0.10264569,94864.0,94863.0,0.0016596]
[1740415742763,0.26076669,94864.0,94863.0,0.0016596]
[1740415743366,0.159121,94864.0,94863.0,0.0016596]
[1740415743766,0.160121,94864.0,94863.0,0.0016596]
[1740415744898,0.158129,94859.0,94852.0,0.0766]
[1740415745523,0.308129,94859.0,94852.0,0.0766]
[1740415746696,0.308129,94859.0,94858.0,0.00329788]
[1740415746899,0.308129,94859.0,94858.0,0.00429788]
[1740415747893,0.308129,94859.0,94858.0,0.00329788]
[1740415748289,0.309129,94859.0,94858.0,0.00329788]
[1740415748504,0.309129,94859.0,94858.0,0.00229788]
[1740415748697,0.310129,94859.0,94858.0,0.00229788]
[1740415749587,0.309129,94859.0,94858.0,0.00229788]
[1740415749802,0.310129,94859.0,94858.0,0.00229788]
[1740415750839,0.312129,94859.0,94858.0,0.00229788]
[1740415751255,0.310129,94859.0,94858.0,0.00229788]
[1740415751751,0.309129,94859.0,94858.0,0.00229788]
[1740415751947,0.308129,94859.0,94858.0,0.00229788]
[1740415752378,0.309129,94859.0,94858.0,0.00229788]
[1740415752621,0.310129,94859.0,94858.0,0.00229788]
[1740415753254,0.309129,94859.0,94858.0,0.00229788]
[1740415753603,0.310129,94859.0,94858.0,0.00229788]
[1740415754001,0.311129,94859.0,94858.0,0.00229788]
[1740415754421,0.310129,94859.0,94858.0,0.00229788]
[1740415754616,0.311129,94859.0,94858.0,0.00229788]
[1740415754828,0.309129,94859.0,94858.0,0.00229788]
[1740415755480,0.310129,94859.0,94858.0,0.00229788]
[1740415755670,0.311129,94859.0,94858.0,0.00229788]
[1740415755877,0.311129,94859.0,94852.0,0.0766]
[1740415755878,0.308139,94853.0,94852.0,0.0766]
[1740415756090,0.15,94850.0,94840.0,0.0826]
[1740415756289,0.308159,94841.0,94840.0,0.0826]
[1740415756993,0.15,94840.0,94832.0,0.0781]
[1740415757228,0.158172,94833.0,94832.0,0.0781]
[1740415757771,0.158172,94833.0,94815.0,0.0781]
[1740415757772,0.308174,94832.0,94815.0,0.0781]
[1740415757951,0.158201,94816.0,94815.0,0.0781]
[1740415758157,0.158201,94816.0,94815.0,0.07853298]
[1740415758824,0.308201,94816.0,94815.0,0.00043298]
[1740415759262,0.4022992,94816.0,94815.0,0.00043298]
[1740415760071,0.4022992,94816.0,94815.0,0.00143298]
[1740415760279,0.308201,94816.0,94815.0,0.00143298]
[1740415760475,0.309201,94816.0,94815.0,0.00143298]
[1740415761157,0.308201,94816.0,94815.0,0.00143298]
[1740415763995,0.308201,94816.0,94815.0,0.00228368]
[1740415767140,0.309201,94816.0,94815.0,0.00228368]
[1740415767501,0.308201,94816.0,94815.0,0.00228368]
[1740415768817,0.308201,94816.0,94815.0,0.08438368]
[1740415774953,0.48385259,94816.0,94815.0,0.00228368]
[1740415775160,0.158221,94804.0,94803.0,0.0017002]
[1740415775342,0.158221,94804.0,94803.0,0.00182998]
[1740415775343,0.308221,94804.0,94803.0,0.00182998]
[1740415775502,0.42540754,94804.0,94803.0,0.00182998]
[1740415775703,0.52805323,94804.0,94803.0,0.00182998]
[1740415776128,0.44165855,94804.0,94803.0,0.00182998]
[1740415776678,0.44977244,94804.0,94803.0,0.00182998]
[1740415776994,0.3345859,94804.0,94803.0,0.00182998]
[1740415777721,0.3365859,94804.0,94803.0,0.00182998]
[1740415778555,0.43923159,94804.0,94803.0,0.00182998]
[1740415778755,0.55641813,94804.0,94803.0,0.00182998]
[1740415779603,0.55441813,94804.0,94803.0,0.00182998]
[1740415779938,0.55741813,94804.0,94803.0,0.00182998]
[1740415780343,0.55241813,94804.0,94803.0,0.00182998]
[1740415780739,0.55541813,94804.0,94803.0,0.00182998]
[1740415780990,0.55241813,94804.0,94803.0,0.00182998]
[1740415781347,0.308241,94792.0,94788.0,0.0792014]
[1740415782205,0.36922501,94792.0,94788.0,0.0792014]
[1740415784178,0.41088669,94792.0,94788.0,0.0017014]
[1740415786767,0.42542754,94792.0,94788.0,0.0017014]
[1740415787821,0.42742754,94792.0,94788.0,0.0017014]
[1740415787945,0.42542754,94792.0,94788.0,0.0017014]
[1740415788141,0.43042754,94792.0,94788.0,0.0017014]
[1740415788372,0.53307323,94792.0,94788.0,0.0017014]
[1740415788573,0.53507323,94792.0,94788.0,0.0017014]
[1740415788982,0.53307323,94792.0,94788.0,0.0017014]
[1740415789408,0.158266,94777.0,94775.0,0.0752]
[1740415789607,0.158266,94777.0,94766.0,0.0829]
[1740415789608,0.41875278,94777.0,94766.0,0.0829]
[1740415789856,0.43329363,94777.0,94776.0,7e-07]
[1740415790768,0.308277,94770.0,94766.0,0.0829]
[1740415790935,0.308277,94770.0,94769.0,0.00098056]
[1740415795024,0.308277,94770.0,94748.0,0.08438062]
[1740415795025,0.308308,94752.0,94746.0,0.0827]
[1740415795240,0.308316,94747.0,94746.0,0.0827]
[1740415795446,0.41096169,94747.0,94746.0,0.0827]
[1740415796526,0.41196169,94747.0,94746.0,0.0827]
[1740415796910,0.41296169,94747.0,94746.0,0.0827]
[1740415797312,0.41196169,94747.0,94746.0,0.0827]
[1740415798261,0.41296169,94747.0,94746.0,0.0827]
[1740415798507,0.42603452,94747.0,94746.0,0.0827]
[1740415798827,0.42703452,94747.0,94746.0,0.0827]
[1740415799440,0.42603452,94747.0,94746.0,0.0827]
[1740415799788,0.42703452,94747.0,94746.0,0.0827]
[1740415800126,0.42603452,94747.0,94746.0,0.0827]
[1740415800382,0.32338883,94747.0,94746.0,0.0827]
[1740415800583,0.32438883,94747.0,94746.0,0.0827]
[1740415800734,0.32538883,94747.0,94746.0,0.0827]
[1740415801097,0.158328,94740.0,94739.0,0.0813]
[1740415801300,0.38724265,94740.0,94739.0,0.0813]
[1740415802250,0.15,94740.0,94739.0,0.0813]
[1740415802654,0.308328,94740.0,94739.0,0.0813]
[1740415803171,0.15,94740.0,94739.0,0.0813]
[1740415803328,0.01507283,94747.0,94739.0,0.0813]
[1740415803568,0.211086,94748.0,94739.0,0.0813]
[1740415803776,0.15,94747.0,94739.0,0.0813]
[1740415803987,0.16516422,94747.0,94739.0,0.0813]
[1740415804193,0.16516422,94747.0,94746.0,0.234618]
[1740415804405,0.16516422,94747.0,94746.0,0.0763]
[1740415804823,0.01516422,94747.0,94746.0,0.0763]
[1740415805018,0.001,94748.0,94746.0,0.0763]
[1740415805650,0.001,94748.0,94746.0,0.158318]
[1740415805860,0.001,94748.0,94747.0,0.0803]
[1740415806087,0.001,94748.0,94747.0,0.238616]
[1740415806375,0.15,94752.0,94748.0,0.0803]
[1740415806584,0.16531604,94752.0,94748.0,0.0803]
[1740415806736,0.16531604,94752.0,94749.0,0.238612]
[1740415806931,0.01531604,94752.0,94750.0,0.0803]
[1740415807137,0.15,94754.0,94751.0,0.0452]